fUST/lending_fUST_20250923
["ID","MTS","AMOUNT","RATE_DAILY","PERIOD"]
[387187426,1758622251970,-368.42634822,0.00019178,2]
[387187427,1758622251979,-480.0,0.00019178,2]
[387187428,1758622251989,-1712.89,0.00019178,2]
[387187429,1758622251998,-480.0,0.00019178,2]
[387187430,1758622252007,-480.0,0.00019178,2]
[387187431,1758622252016,-480.0,0.00019178,2]
[387187432,1758622252025,-480.0,0.00019178,2]
[387187433,1758622252034,-480.0,0.00019178,2]
[387187434,1758622252043,-480.0,0.00019178,2]
[387187435,1758622252052,-151.0,0.00019178,2]
[387187436,1758622252061,-151.0,0.00019178,2]
[387187437,1758622252071,-480.0,0.00019178,2]
[387187438,1758622252080,-151.0,0.00019178,2]
[387187439,1758622252090,-151.0,0.00019178,2]
[387187440,1758622252098,-151.0,0.00019178,2]
[387187441,1758622252108,-151.0,0.00019178,2]
[387187442,1758622252117,-467.29864486,0.00019178,2]
[387187443,1758622252127,-480.0,0.00019178,2]
[387187444,1758622252137,-480.0,0.00019178,2]
[387187445,1758622252147,-728.48,0.00019178,2]
[387187446,1758622252156,-480.0,0.00019178,2]
[387187447,1758622252166,-480.0,0.00019178,2]
[387187448,1758622252175,-480.0,0.00019178,2]
[387187449,1758622252184,-480.0,0.00019178,2]
[387187450,1758622252193,-480.0,0.00019178,2]
[387187451,1758622252202,-151.0,0.00019178,2]
[387187452,1758622252211,-151.0,0.00019178,2]
[387187453,1758622252220,-151.0,0.00019178,2]
[387187454,1758622252229,-151.0,0.00019178,2]
[387187455,1758622252238,-151.0,0.00019178,2]
[387187456,1758622252248,-151.0,0.00019178,2]
[387187457,1758622252257,-481.29508615,0.00019178,2]
[387187458,1758622252266,-151.0,0.00019178,2]
[387187459,1758622252275,-151.0,0.00019178,2]
[387187460,1758622252284,-165.13513092,0.00019178,2]
[387187461,1758622252294,-480.0,0.00019178,2]
[387187462,1758622252303,-480.0,0.00019178,2]
[387187463,1758622252312,-480.0,0.00019178,2]
[387187464,1758622252321,-526.71987528,0.00019178,2]
[387187465,1758622252331,-480.0,0.00019178,2]
[387187466,1758622252345,-480.0,0.00019178,2]
[387187467,1758622252355,-480.0,0.00019178,2]
[387187468,1758622252366,-480.0,0.00019178,2]
[387187469,1758622252376,-480.0,0.00019178,2]
[387187470,1758622252387,-480.0,0.00019178,2]
[387187471,1758622252398,-480.0,0.00019178,2]
[387187472,1758622252408,-480.0,0.00019178,2]
[387187473,1758622252418,-480.0,0.00019178,2]
[387187474,1758622252427,-480.0,0.00019178,2]
[387187475,1758622252436,-480.0,0.00019178,2]
[387187476,1758622252445,-480.0,0.00019178,2]
[387187477,1758622252455,-1253.21,0.00019178,2]
[387187478,1758622252464,-480.0,0.00019178,2]
[387187479,1758622252473,-480.0,0.00019178,2]
[387187480,1758622252482,-480.0,0.00019178,2]
[387187481,1758622252492,-480.0,0.00019178,2]
[387187482,1758622252501,-480.0,0.00019178,2]
[387187483,1758622252511,-480.0,0.00019178,2]
[387187484,1758622252520,-480.0,0.00019178,2]
[387187485,1758622252529,-480.0,0.00019178,2]
[387187486,1758622252538,-468.51352477,0.00019178,2]
[387187487,1758622252548,-480.0,0.00019178,2]
[387187488,1758622252557,-444.06630095,0.00019178,2]
[387187489,1758622252567,-480.0,0.00019178,2]
[387187490,1758622252576,-480.0,0.00019178,2]
[387187491,1758622252586,-480.0,0.00019178,2]
[387187492,1758622252595,-480.0,0.00019178,2]
[387187493,1758622252605,-480.0,0.00019178,2]
[387187494,1758622252614,-480.0,0.00019178,2]
[387187495,1758622252624,-480.0,0.00019178,2]
[387187496,1758622252634,-301.57932254,0.00019178,2]
[387187497,1758622252643,-480.0,0.00019178,2]
[387187498,1758622252653,-480.0,0.00019178,2]
[387187499,1758622252662,-483.24399252,0.00019178,2]
[387187500,1758622252672,-480.0,0.00019178,2]
[387187501,1758622252681,-480.0,0.00019178,2]
[387187502,1758622252690,-480.0,0.00019178,2]
[387187503,1758622252699,-480.0,0.00019178,2]
[387187504,1758622252709,-480.0,0.00019178,2]
[387187505,1758622252718,-480.0,0.00019178,2]
[387187506,1758622252728,-799.12,0.00019178,2]
[387187507,1758622252737,-500.0,0.00019178,2]
[387187508,1758622252746,-480.0,0.00019178,2]
[387187509,1758622252756,-350.44796234,0.00019178,2]
[387187510,1758622252765,-484.84317112,0.00019178,2]
[387187511,1758622252776,-501.03209374,0.00019178,2]
[387187512,1758622252785,-480.0,0.00019178,2]
[387187513,1758622252795,-175.182646,0.00019178,2]
[387187514,1758622252804,-175.182646,0.00019178,2]
[387187515,1758622252813,-175.182646,0.00019178,2]
[387187516,1758622252823,-175.182646,0.00019178,2]
[387187517,1758622252833,-175.182646,0.00019178,2]
[387187518,1758622252842,-510.59,0.00019178,2]
[387187519,1758622252851,-683.93,0.00019178,2]
[387187520,1758622252861,-175.182646,0.00019178,2]
[387187521,1758622252871,-510.59,0.00019178,2]
[387187522,1758622252880,-510.59,0.00019178,2]
[387187523,1758622252889,-510.59,0.00019178,2]
[387187524,1758622252898,-175.182646,0.00019178,2]
[387187525,1758622252908,-510.59,0.00019178,2]
[387187526,1758622252917,-175.182642,0.00019178,2]
[387187527,1758622252926,-510.59,0.00019178,2]
[387187528,1758622252936,-480.0,0.00019178,2]
[387187529,1758622252945,-510.59,0.00019178,2]
[387187530,1758622252954,-397.28276152,0.00019178,2]
[387187531,1758622253027,-510.59,0.00019178,2]
[387187532,1758622253036,-510.59,0.00019178,2]
[387187533,1758622253046,-970.15,0.00019178,2]
[387187534,1758622253055,-510.59,0.00019178,2]
[387187535,1758622253065,-510.59,0.00019178,2]
[387187536,1758622253075,-510.59,0.00019178,2]
[387187537,1758622253084,-510.59,0.00019178,2]
[387187538,1758622253094,-510.59,0.00019178,2]
[387187539,1758622253104,-510.59,0.00019178,2]
[387187540,1758622253114,-510.59,0.00019178,2]
[387187541,1758622253124,-510.59,0.00019178,2]
[387187542,1758622253133,-510.59,0.00019178,2]
[387187543,1758622253143,-510.59,0.00019178,2]
[387187544,1758622253152,-151.0,0.00019178,2]
[387187545,1758622253162,-151.0,0.00019178,2]
[387187546,1758622253171,-151.0,0.00019178,2]
[387187547,1758622253180,-151.0,0.00019178,2]
[387187548,1758622253189,-510.59,0.00019178,2]
[387187549,1758622253198,-510.59,0.00019178,2]
[387187550,1758622253208,-510.59,0.00019178,2]
[387187551,1758622253217,-151.0,0.00019178,2]
[387187552,1758622253226,-151.0,0.00019178,2]
[387187553,1758622253236,-510.59,0.00019178,2]
[387187554,1758622253245,-480.0,0.00019178,2]
[387187555,1758622253254,-510.78437019,0.00019178,2]
[387187556,1758622253263,-151.0,0.00019178,2]
[387187557,1758622253272,-208.659459,0.00019178,2]
[387187558,1758622253282,-480.0,0.00019178,2]
[387187559,1758622253291,-1628.55,0.00019178,2]
[387187560,1758622253300,-480.0,0.00019178,2]
[387187561,1758622253309,-480.0,0.00019178,2]
[387187562,1758622253320,-480.0,0.00019178,2]
[387187563,1758622253330,-480.0,0.00019178,2]
[387187564,1758622253348,-480.0,0.00019178,2]
[387187565,1758622253364,-480.0,0.00019178,2]
[387187566,1758622253374,-480.0,0.00019178,2]
[387187567,1758622253384,-480.0,0.00019178,2]
[387187568,1758622253393,-480.0,0.00019178,2]
[387187569,1758622253402,-480.0,0.00019178,2]
[387187570,1758622253412,-480.0,0.00019178,2]
[387187571,1758622253421,-483.65872855,0.00019178,2]
[387187572,1758622253430,-480.0,0.00019178,2]
[387187573,1758622253439,-480.0,0.00019178,2]
[387187574,1758622253448,-480.0,0.00019178,2]
[387187575,1758622253458,-480.0,0.00019178,2]
[387187576,1758622253467,-480.0,0.00019178,2]
[387187577,1758622253476,-480.0,0.00019178,2]
[387187578,1758622253486,-5254.81,0.00019178,2]
[387187579,1758622253495,-1038.61,0.00019178,2]
[387187580,1758622253504,-480.0,0.00019178,2]
[387187581,1758622253513,-497.54304207,0.00019178,2]
[387187582,1758622253522,-486.86320557,0.00019178,2]
[387187583,1758622253532,-480.0,0.00019178,2]
[387187584,1758622253542,-482.75940122,0.00019178,2]
[387187585,1758622253551,-480.0,0.00019178,2]
[387187586,1758622253562,-480.0,0.00019178,2]
[387187587,1758622253572,-480.0,0.00019178,2]
[387187588,1758622253582,-480.0,0.00019178,2]
[387187589,1758622253591,-480.0,0.00019178,2]
[387187590,1758622253600,-623.064651,0.00019178,2]
[387187591,1758622253609,-623.064651,0.00019178,2]
[387187592,1758622253619,-480.0,0.00019178,2]
[387187593,1758622253628,-623.064651,0.00019178,2]
[387187594,1758622253638,-623.064651,0.00019178,2]
[387187595,1758622253647,-623.064651,0.00019178,2]
[387187596,1758622253656,-623.064651,0.00019178,2]
[387187597,1758622253665,-480.0,0.00019178,2]
[387187598,1758622253674,-623.064651,0.00019178,2]
[387187599,1758622253683,-623.064642,0.00019178,2]
[387187600,1758622253692,-480.0,0.00019178,2]
[387187601,1758622253701,-8099.33,0.00019178,2]
[387187602,1758622253711,-480.0,0.00019178,2]
[387187603,1758622253720,-592.68982552,0.00019178,2]
[387187604,1758622253729,-480.0,0.00019178,2]
[387187605,1758622253738,-480.0,0.00019178,2]
[387187606,1758622253747,-482.37964265,0.00019178,2]
[387187607,1758622253756,-497.68761292,0.00019178,2]
[387187608,1758622253765,-699.36,0.00019178,2]
[387187609,1758622253774,-486.04258582,0.00019178,2]
[387187610,1758622253784,-480.0,0.00019178,2]
[387187611,1758622253793,-151.0,0.00019178,2]
[387187612,1758622253802,-151.0,0.00019178,2]
[387187613,1758622253811,-480.0,0.00019178,2]
[387187614,1758622253822,-480.0,0.00019178,2]
[387187615,1758622253831,-480.0,0.00019178,2]
[387187616,1758622253842,-480.0,0.00019178,2]
[387187617,1758622253851,-480.0,0.00019178,2]
[387187618,1758622253860,-151.0,0.00019178,2]
[387187619,1758622253869,-480.0,0.00019178,2]
[387187620,1758622253878,-480.0,0.00019178,2]
[387187621,1758622253887,-480.0,0.00019178,2]
[387187622,1758622253896,-483.44452902,0.00019178,2]
[387187623,1758622253905,-490.39861997,0.00019178,2]
[387187624,1758622253914,-480.0,0.00019178,2]
[387187625,1758622253923,-480.0,0.00019178,2]
[387187626,1758622253932,-485.39691616,0.00019178,2]
[387187627,1758622253942,-480.0,0.00019178,2]
[387187628,1758622253951,-480.0,0.00019178,2]
[387187629,1758622253959,-480.0,0.00019178,2]
[387187630,1758622253969,-151.0,0.00019178,2]
[387187631,1758622253977,-480.0,0.00019178,2]
[387187632,1758622253986,-151.0,0.00019178,2]
[387187633,1758622253995,-261.328177,0.00019178,2]
[387187634,1758622254005,-261.328177,0.00019178,2]
[387187635,1758622254014,-480.0,0.00019178,2]
[387187636,1758622254023,-261.328177,0.00019178,2]
[387187637,1758622254033,-261.328177,0.00019178,2]
[387187638,1758622254043,-261.328177,0.00019178,2]
[387187639,1758622254053,-261.328177,0.00019178,2]
[387187640,1758622254063,-261.328177,0.00019178,2]
[387187641,1758622254074,-261.328174,0.00019178,2]
[387187642,1758622254084,-481.54225201,0.00019178,2]
[387187643,1758622254094,-480.0,0.00019178,2]
[387187644,1758622254165,-480.0,0.00019178,2]
[387187645,1758622254176,-480.0,0.00019178,2]
[387187646,1758622254186,-480.0,0.00019178,2]
[387187647,1758622254195,-480.0,0.00019178,2]
[387187648,1758622254205,-480.0,0.00019178,2]
[387187649,1758622254214,-480.0,0.00019178,2]
[387187650,1758622254223,-480.0,0.00019178,2]
[387187651,1758622254233,-151.0,0.00019178,2]
[387187652,1758622254242,-151.0,0.00019178,2]
[387187653,1758622254251,-151.0,0.00019178,2]
[387187654,1758622254260,-480.0,0.00019178,2]
[387187655,1758622254269,-757.77,0.00019178,2]
[387187656,1758622254279,-633.61,0.00019178,2]
[387187657,1758622254289,-151.0,0.00019178,2]
[387187658,1758622254298,-151.0,0.00019178,2]
[387187659,1758622254307,-166.305413,0.00019178,2]
[387187660,1758622254316,-166.305413,0.00019178,2]
[387187661,1758622254326,-166.305413,0.00019178,2]
[387187662,1758622254338,-480.0,0.00019178,2]
[387187663,1758622254349,-419.66507365,0.00019178,2]
[387187668,1758622545949,-193.99612365,0.00018111,2]
[387187669,1758622552361,-89.51951035,0.00018111,2]
[387187671,1758622616629,-336.05050917,0.000181,2]
[387187672,1758622618678,-163.94949083,0.000181,2]
[387187673,1758622629609,300.0,0.00019443,20]
[387187674,1758622630205,300.0,0.00019443,20]
[387187675,1758622631454,300.0,0.00019443,20]
[387187676,1758622632033,300.0,0.00019443,20]
[387187678,1758623015859,223.459513,0.00017945,2]
[387187683,1758623150718,561.8367188,0.00017944,2]
[387187687,1758623258540,168.0,0.00017903,2]
[387187688,1758623273116,9046.7137682,0.00018,2]
[387187689,1758623273139,10000.01,0.00018,2]
[387187690,1758623273162,10000.01,0.00018,2]
[387187691,1758623273184,10000.01,0.00018,2]
[387187692,1758623273208,10000.01,0.00018,2]
[387187693,1758623273230,10000.01,0.00018,2]
[387187694,1758623273253,10000.01,0.00018,2]
[387187695,1758623273275,8825.9014382,0.00018,2]
[387187696,1758623274230,-168.0,0.00018048,2]
[387187697,1758623274252,-120.5193359,0.00018323,2]
[387187698,1758623278283,-49.76567133,0.00018323,2]
[387187699,1758623278308,-168.0,0.00018364,2]
[387187700,1758623278331,-100.01785386,0.00018416,2]
[387187701,1758623280892,-67.98214614,0.00018416,2]
[387187704,1758623296223,418.93038176,0.00010618,2]
[387187705,1758623305022,755.17818004,0.00015,2]
[387187706,1758623305044,248.58038797,0.00015,2]
[387187707,1758623306932,2105.00134801,0.000176,2]
[387187709,1758623316202,7646.42826402,0.00017,2]
[387187710,1758623316223,10000.01,0.00017,2]
[387187711,1758623316243,10000.01,0.00017,2]
[387187712,1758623316263,2617.36349757,0.00017,2]
[387187714,1758623324853,350.34959338,0.00019,20]
[387187732,1758623432032,-6869.09688338,0.0001851,2]
[387187734,1758623432044,-168.0,0.0001861,2]
[387187736,1758623432055,-168.0,0.00018743,2]
[387187738,1758623432066,-1200.0,0.00018889,2]
[387187740,1758623432076,-2488.597621,0.0001889,2]
[387187741,1758623432086,-168.0,0.00018937,2]
[387187742,1758623432095,-300.0,0.00018963,2]
[387187744,1758623432105,-1200.0,0.00018964,2]
[387187746,1758623432117,-5320.0,0.00018965,2]
[387187747,1758623432126,-168.0,0.00018977,2]
[387187748,1758623432136,-3804.83251329,0.00018988,2]
[387187749,1758623432145,-258.61395656,0.00018988,7]
[387187750,1758623432155,-500.0,0.00018989,2]
[387187751,1758623432164,-500.0,0.00018989,2]
[387187752,1758623432175,-500.0,0.00018989,2]
[387187753,1758623432185,-199.74844515,0.00018989,2]
[387187754,1758623432196,-471.56484236,0.00018989,2]
[387187755,1758623432206,-500.0,0.00018989,2]
[387187756,1758623432215,-4239.06228293,0.0001899,2]
[387187757,1758623432227,-8425.07062361,0.0001899,2]
[387187811,1758623437744,-8773.7885768,0.0001899,2]
[387187818,1758623437802,-434.60648948,0.0001899,2]
[387187821,1758623437815,-531.25030927,0.0001899,2]
[387187836,1758623437964,-821.57081904,0.0001899,2]
[387188036,1758623439924,-452.69725854,0.0001899,2]
[387188039,1758623439935,-25693.47759348,0.0001899,2]
[387188243,1758623442984,-1167.0,0.0001899,2]
[387188245,1758623442995,-480.0,0.0001899,2]
[387188268,1758623446075,-4655.0,0.0001899,2]
[387188270,1758623446235,-1982.18973996,0.0001899,2]
[387188273,1758623565716,-564.07329265,0.000189,2]
[387188274,1758623565750,-1200.0,0.00018989,2]
[387188275,1758623565773,-1103.86066978,0.00018989,2]
[387188276,1758623565795,-42344.28630689,0.0001899,2]
[387188277,1758623565818,-266.6344862,0.00019,2]
[387188278,1758623565840,-755.566,0.00019064,2]
[387188279,1758623565861,-750.36561908,0.00019078,2]
[387188280,1758623565884,-8338.2833556,0.00019078,2]
[387188281,1758623565905,-584.99343906,0.000191,2]
[387188282,1758623565926,-151.0,0.00019166,2]
[387188283,1758623565947,-181.08010149,0.00019166,2]
[387188284,1758623565970,-225.02781855,0.00019167,2]
[387188285,1758623565992,-1200.15,0.00019168,3]
[387188286,1758623566014,-600.08,0.00019168,3]
[387188287,1758623566036,-300.04,0.00019168,3]
[387188288,1758623566060,-150.02,0.00019168,3]
[387188289,1758623566083,-450.08,0.00019168,3]
[387188290,1758623566106,-172.07,0.00019168,3]
[387188291,1758623566128,-258.88112101,0.00019177,2]
[387188292,1758623566151,-500.0,0.00019177,2]
[387188293,1758623566172,-151.0,0.00019177,2]
[387188294,1758623566195,-151.0,0.00019177,2]
[387188295,1758623566218,-423.36498134,0.00019177,2]
[387188296,1758623566242,-557.56165097,0.00019177,2]
[387188297,1758623566263,-161.22837071,0.00019177,2]
[387188298,1758623566287,-557.56165097,0.00019177,2]
[387188299,1758623566311,-557.56165097,0.00019177,2]
[387188300,1758623566334,-557.56165097,0.00019177,2]
[387188301,1758623566357,-557.56165097,0.00019177,2]
[387188302,1758623566381,-557.56165097,0.00019177,2]
[387188303,1758623566404,-557.56165097,0.00019177,2]
[387188304,1758623566428,-557.56165097,0.00019177,2]
[387188305,1758623566452,-557.56165097,0.00019177,2]
[387188306,1758623566476,-557.56165097,0.00019177,2]
[387188307,1758623566500,-557.56165097,0.00019177,2]
[387188308,1758623566524,-557.56165097,0.00019177,2]
[387188309,1758623566547,-557.56165097,0.00019177,2]
[387188310,1758623566572,-557.56165097,0.00019177,2]
[387188311,1758623566596,-557.56165097,0.00019177,2]
[387188312,1758623566620,-557.56165097,0.00019177,2]
[387188313,1758623566646,-557.56165097,0.00019177,2]
[387188314,1758623566671,-557.56165097,0.00019177,2]
[387188315,1758623566696,-557.56165097,0.00019177,2]
[387188316,1758623566720,-486.82883224,0.00019178,2]
[387188317,1758623566748,-480.0,0.00019178,2]
[387188318,1758623566772,-489.68555036,0.00019178,2]
[387188319,1758623566796,-483.03013907,0.00019178,2]
[387188320,1758623566821,-480.0,0.00019178,2]
[387188321,1758623566844,-480.0,0.00019178,2]
[387188322,1758623566868,-480.0,0.00019178,2]
[387188323,1758623566893,-480.0,0.00019178,2]
[387188324,1758623566916,-481.35467085,0.00019178,2]
[387188325,1758623566938,-480.0,0.00019178,2]
[387188326,1758623566961,-480.0,0.00019178,2]
[387188327,1758623566983,-480.0,0.00019178,2]
[387188328,1758623567005,-480.0,0.00019178,2]
[387188329,1758623567028,-8511.5280519,0.00019178,2]
[387188330,1758623567051,-483.438194,0.00019178,2]
[387188331,1758623567073,-480.0,0.00019178,2]
[387188332,1758623567095,-520.0,0.00019178,3]
[387188333,1758623567116,-480.0,0.00019178,2]
[387188334,1758623567137,-480.0,0.00019178,2]
[387188335,1758623567160,-392.32419897,0.00019178,2]
[387188336,1758623567182,-508.05150879,0.00019178,2]
[387188337,1758623567308,-485.98608114,0.00019178,2]
[387188338,1758623567332,-482.44293641,0.00019178,2]
[387188339,1758623567355,-500.0,0.00019178,2]
[387188340,1758623567378,-480.0,0.00019178,2]
[387188341,1758623567399,-151.0,0.00019178,2]
[387188342,1758623567423,-399.40444571,0.00019178,2]
[387188343,1758623567445,-485.39955782,0.00019178,2]
[387188344,1758623567468,-480.0,0.00019178,2]
[387188345,1758623567491,-480.0,0.00019178,2]
[387188346,1758623567513,-480.0,0.00019178,2]
[387188347,1758623567536,-480.0,0.00019178,2]
[387188348,1758623567558,-460.72820369,0.00019178,2]
[387188349,1758623567581,-480.0,0.00019178,2]
[387188350,1758623567605,-480.0,0.00019178,2]
[387188351,1758623567627,-481.25362073,0.00019178,2]
[387188352,1758623567649,-480.0,0.00019178,2]
[387188353,1758623567671,-480.0,0.00019178,2]
[387188354,1758623567694,-480.0,0.00019178,2]
[387188355,1758623567716,-480.0,0.00019178,2]
[387188356,1758623567743,-480.0,0.00019178,2]
[387188357,1758623567765,-481.90930079,0.00019178,2]
[387188358,1758623567786,-480.0,0.00019178,2]
[387188359,1758623567812,-480.0,0.00019178,2]
[387188360,1758623567847,-480.0,0.00019178,2]
[387188361,1758623567869,-480.0,0.00019178,2]
[387188362,1758623567891,-438.08554039,0.00019178,2]
[387188363,1758623567913,-480.0,0.00019178,2]
[387188364,1758623567936,-481.20731418,0.00019178,2]
[387188365,1758623567958,-575.58225262,0.00019178,2]
[387188366,1758623567981,-480.0,0.00019178,2]
[387188367,1758623568003,-480.0,0.00019178,2]
[387188368,1758623568026,-480.0,0.00019178,2]
[387188369,1758623568049,-480.0,0.00019178,2]
[387188370,1758623568071,-480.0,0.00019178,2]
[387188371,1758623568093,-480.0,0.00019178,2]
[387188372,1758623568116,-523.46437673,0.00019178,2]
[387188373,1758623568140,-480.0,0.00019178,2]
[387188374,1758623568164,-483.15402451,0.00019178,2]
[387188375,1758623568187,-480.0,0.00019178,2]
[387188376,1758623568212,-480.0,0.00019178,2]
[387188377,1758623568236,-480.0,0.00019178,2]
[387188378,1758623568260,-480.0,0.00019178,2]
[387188379,1758623568284,-480.0,0.00019178,2]
[387188380,1758623568306,-480.0,0.00019178,2]
[387188381,1758623568330,-480.0,0.00019178,2]
[387188382,1758623568355,-480.0,0.00019178,2]
[387188383,1758623568379,-480.0,0.00019178,2]
[387188384,1758623568403,-480.0,0.00019178,2]
[387188385,1758623568426,-318.53455655,0.00019178,2]
[387188386,1758623568449,-480.0,0.00019178,2]
[387188387,1758623568473,-374.35815699,0.00019178,2]
[387188388,1758623568495,-480.0,0.00019178,2]
[387188389,1758623568518,-480.0,0.00019178,2]
[387188390,1758623568542,-480.0,0.00019178,2]
[387188391,1758623568565,-487.96837029,0.00019178,2]
[387188392,1758623568588,-480.0,0.00019178,2]
[387188393,1758623568611,-480.0,0.00019178,2]
[387188394,1758623568634,-480.0,0.00019178,2]
[387188395,1758623568657,-480.0,0.00019178,2]
[387188396,1758623568679,-480.0,0.00019178,2]
[387188397,1758623568702,-598.79,0.00019178,2]
[387188398,1758623568728,-480.0,0.00019178,2]
[387188399,1758623568751,-480.0,0.00019178,2]
[387188400,1758623568775,-480.0,0.00019178,2]
[387188401,1758623568799,-480.0,0.00019178,2]
[387188402,1758623568824,-480.0,0.00019178,2]
[387188403,1758623568848,-480.0,0.00019178,2]
[387188404,1758623568869,-151.0,0.00019178,2]
[387188405,1758623568891,-480.0,0.00019178,2]
[387188406,1758623568914,-480.0,0.00019178,2]
[387188407,1758623568937,-480.0,0.00019178,2]
[387188408,1758623568960,-376.16317828,0.00019178,2]
[387188409,1758623568985,-480.0,0.00019178,2]
[387188410,1758623569009,-480.0,0.00019178,2]
[387188411,1758623569031,-480.0,0.00019178,2]
[387188412,1758623569056,-480.0,0.00019178,2]
[387188413,1758623569081,-480.0,0.00019178,2]
[387188414,1758623569104,-480.0,0.00019178,2]
[387188415,1758623569128,-151.0,0.00019178,2]
[387188416,1758623569152,-151.0,0.00019178,2]
[387188417,1758623569270,-480.0,0.00019178,2]
[387188418,1758623569293,-480.0,0.00019178,2]
[387188419,1758623569316,-484.42774115,0.00019178,2]
[387188420,1758623569340,-480.0,0.00019178,2]
[387188421,1758623569364,-480.0,0.00019178,2]
[387188422,1758623569386,-151.0,0.00019178,2]
[387188423,1758623569409,-151.0,0.00019178,2]
[387188424,1758623569431,-480.0,0.00019178,2]
[387188425,1758623569454,-256.47565834,0.00019178,2]
[387188426,1758623569478,-461.7044139,0.00019178,2]
[387188427,1758623569502,-480.0,0.00019178,2]
[387188428,1758623569526,-480.0,0.00019178,2]
[387188429,1758623569548,-480.0,0.00019178,2]
[387188430,1758623569571,-295.45312306,0.00019178,2]
[387188431,1758623569593,-480.0,0.00019178,2]
[387188432,1758623569616,-480.0,0.00019178,2]
[387188433,1758623569637,-480.0,0.00019178,2]
[387188434,1758623569659,-480.0,0.00019178,2]
[387188435,1758623569681,-480.0,0.00019178,2]
[387188436,1758623569704,-480.0,0.00019178,2]
[387188437,1758623569729,-480.0,0.00019178,2]
[387188438,1758623569751,-480.0,0.00019178,2]
[387188439,1758623569774,-480.0,0.00019178,2]
[387188440,1758623569799,-480.0,0.00019178,2]
[387188441,1758623569822,-295.55875626,0.00019178,2]
[387188442,1758623569844,-480.0,0.00019178,2]
[387188443,1758623569867,-480.0,0.00019178,2]
[387188444,1758623569891,-480.0,0.00019178,2]
[387188445,1758623569914,-480.0,0.00019178,2]
[387188446,1758623569936,-480.0,0.00019178,2]
[387188447,1758623569958,-480.0,0.00019178,2]
[387188448,1758623569980,-480.0,0.00019178,2]
[387188449,1758623570003,-480.0,0.00019178,2]
[387188450,1758623570026,-480.0,0.00019178,2]
[387188451,1758623570050,-480.0,0.00019178,2]
[387188452,1758623570072,-480.0,0.00019178,2]
[387188453,1758623570094,-151.0,0.00019178,2]
[387188454,1758623570117,-151.0,0.00019178,2]
[387188455,1758623570140,-151.0,0.00019178,2]
[387188456,1758623570163,-151.0,0.00019178,2]
[387188457,1758623570185,-480.0,0.00019178,2]
[387188458,1758623570208,-480.0,0.00019178,2]
[387188459,1758623570229,-480.0,0.00019178,2]
[387188460,1758623570251,-483.64713461,0.00019178,2]
[387188461,1758623570273,-480.0,0.00019178,2]
[387188462,1758623570294,-480.0,0.00019178,2]
[387188463,1758623570316,-480.0,0.00019178,2]
[387188464,1758623570339,-698.13,0.00019178,2]
[387188465,1758623570361,-480.0,0.00019178,2]
[387188466,1758623570382,-521.85885301,0.00019178,2]
[387188467,1758623570404,-480.0,0.00019178,2]
[387188468,1758623570426,-480.0,0.00019178,2]
[387188469,1758623570448,-371.02600519,0.00019178,2]
[387188470,1758623570470,-480.0,0.00019178,2]